Cogmind - Beta 14 @@@ ROGUE MODE // 2024.09.29 @ 20:50:14 Player: Komeiji O. Result: Smashed by cave-in Performance ------------- Evolutions (1) 500 Regions Visited (3) 600 Robots Destroyed (35) 175 Value Destroyed (835) 835 Prototype IDs (0) 0 Alien Tech Used (0) 0 Bonus (0) 0 TOTAL SCORE: 2110 Bonus ------- None Cogmind --------- Core Integrity 0/400 Matter 43/300 Energy 98/100 System Corruption 10% Temperature Cool (1) Movement Core (100) Ox1 Location -9/Storage Parts ------- > --- POWER (2) -------- (None) > --- PROPULSION (3) --- (None) > --- UTILITY (2) ------ Small Storage Unit > --- WEAPON (2) ------- (None) > --- INVENTORY (8) ---- Flight Unit Flight Unit Flight Unit Heat Sink Backup Laser I Light Assault Rifle Light Assault Rifle Rocket Launcher Peak State ------------ > --- POWER ------------ Light Ion Engine > --- PROPULSION ------- Improved Aluminum Leg Improved Aluminum Leg Flight Unit > --- UTILITY ---------- Small Storage Unit Sensor Array > --- WEAPON ----------- Rocket Launcher Rocket Launcher > --- INVENTORY -------- Flight Unit Flight Unit Flight Unit Heat Sink Backup Laser I Backup Laser I Light Assault Rifle Light Assault Rifle [Rating: 12] Favorites ----------- Power Light Ion Engine Engine Light Ion Engine Power Core Light Nuclear Core Propulsion Aluminum Leg Treads Light Treads Leg Aluminum Leg Hover Unit Backup Propulsion I Flight Unit Flight Unit Utility Sensor Array Device Sensor Array Storage Medium Battery Protection Backup Plating I Weapon EM Pulse Gun Energy Gun EM Pulse Gun Ballistic Gun Light Assault Rifle Ballistic Cannon Light Cannon Launcher Grenade Launcher Special Weapon Welding Torch Build | -11 -10 -9 -9 ------- Run | Yrd Mat Mat Sto Slots Evolved 2 | . . 2 . Power 1 | . . 1 . Propulsion 1 | . . 1 . Utility . | . . . . Weapon . | . . . . Parts Attached 62 | 7 24 26 5 Power 8 | 1 3 3 1 Engine 7 | 1 2 3 1 Core 1 | . 1 . . Reactor . | . . . . Propulsion 25 | 2 10 11 2 Treads 2 | . 2 . . Leg 16 | 2 6 6 2 Wheel . | . . . . Hover . | . . . . Flight 7 | . 2 5 . Utility 13 | 1 6 6 . Device 9 | 1 4 4 . Storage 4 | . 2 2 . Processor . | . . . . Hackware . | . . . . Protection . | . . . . Artifact . | . . . . Weapon 16 | 3 5 6 2 Energy Gun 6 | 2 1 3 . Energy Cannon . | . . . . Ballistic Gun 5 | 1 1 3 . Ballistic Cannon 1 | . 1 . . Launcher 3 | . 1 . 2 Special Weapon 1 | . 1 . . Impact Weapon . | . . . . Slashing Weapon . | . . . . Piercing Weapon . | . . . . Special Melee Weapon . | . . . . Unidentified Prototypes . | . . . . Parts Lost 24 | . 4 13 7 Power 5 | . 1 3 1 Propulsion 9 | . 2 4 3 Utility 5 | . 1 3 1 Weapon 5 | . . 3 2 Highest Loss Streak 12 | . 4 12 7 To Critical Strikes . | . . . . Average Slot Usage (%) 92 | . 97 79 83 Engine 10 | . 9 13 8 Core 3 | . 4 . . Treads 7 | . 10 . . Leg 13 | . 14 13 9 Flight 4 | . 2 9 23 Device 19 | . 20 17 9 Storage 4 | . 5 . 11 Energy Gun 7 | . 5 16 . Ballistic Gun 3 | . 3 3 9 Ballistic Cannon 3 | . 4 . . Launcher 6 | . 8 . 11 Special Weapon 3 | . 4 . . Peak Build Rating 12 | 6 9 11 12 Average Rating 7 | 3 7 7 9 On Entrance 5 | . 6 7 7 Naked Turns 2 | . . 2 . Heaviest Build 17 | 7 12 12 17 Greatest Support 40 | 20 40 36 26 Greatest Overweight (x) 3 | . 3 1 1 Average Overweight (x) . | . . . . Largest Inventory Capacity 15 | 5 5 15 8 Average Capacity 5 | 5 5 5 8 Most Carried 8 | 5 5 7 8 Average Carried 4 | 2 4 4 7 Final Capacity 8 | 5 5 8 8 Final Carried 8 | 5 5 7 8 Class Distribution -------------------- 90% | Mutant 9% | Scavenger-Mutant Dominant Class ---------------- Mutant | -10/Materials Mutant | -9/Materials Mutant | -9/Storage Resources | -11 -10 -9 -9 ----------- Run | Yrd Mat Mat Sto Matter Collected 758 | 250 339 169 . Remotely . | . . . . Salvage Created 744 | 39 429 244 32 Parts 61 | 4 29 25 3 Haulers Intercepted . | . . . . Recyclers Shooed 1 | . 1 . . Parts Field Recycled 1 | . . 1 . Retrieved Matter . | . . . . Parts Self-Destructed . | . . . . Prevented . | . . . . Kills | -11 -10 -9 -9 ------- Run | Yrd Mat Mat Sto Combat Hostiles Destroyed 30 | 1 16 11 2 Guns 14 | 1 4 9 . Cannons 5 | . 5 . . AOE 11 | . 7 2 2 Classes Destroyed 6 | 1 4 . 1 Worker 2 | . 2 . . Builder 1 | . 1 . . Watcher 2 | . 2 . . Swarmer 13 | . 6 7 . Grunt 15 | 1 10 4 . Sentry 2 | . . . 2 Best Kill Streak 9 | 1 9 3 2 Combat Bots Only 6 | 1 6 3 2 Max Kills in Single Turn 2 | 1 2 2 1 Gunslinging 1 | . . 1 . Exploded 2 | . 1 2 1 Melee . | . . . . Uniques/NPCs Destroyed . | . . . . Combat | -11 -10 -9 -9 -------- Run | Yrd Mat Mat Sto Hostile Shots Fired 266 | 6 119 110 31 Missed 88 | 2 39 37 10 Damage Taken 2777 | 44 876 987 870 Core 587 | . 174 189 224 Absorbed by Shields . | . . . . Regen/Repaired (Parts) 23 | . . 23 . Core Remaining (%) 65 | 100 30 . . Volleys Fired 87 | 5 47 25 10 Largest 2 | 2 2 2 2 Hottest 80 | 60 75 80 66 Shots Fired 163 | 7 86 50 20 Gun 107 | 7 44 50 6 Cannon 24 | . 24 . . Launcher 31 | . 17 . 14 Special 1 | . 1 . . Kinetic 63 | 2 49 6 6 Thermal 38 | . 1 37 . Explosive 31 | . 17 . 14 Electromagnetic 31 | 5 19 7 . Robot Hit Streak 11 | 1 11 9 10 Robot Miss Streak 9 | 5 9 2 2 Penetration Max . | . . . . Secondary Targets 2 | . . 2 . Max Gunslinging Chain 1 | . . 1 . Shots Hit Robots 88 | 1 38 36 13 Core Hits 60 | 1 33 19 7 Critical Kills . | . . . . Critical Parts Destroyed . | . . . . Critical Strikes 1 | . 1 . . Blast 1 | . 1 . . Melee Attacks . | . . . . Impact . | . . . . Slashing . | . . . . Piercing . | . . . . Sneak Attacks . | . . . . Combat Hostiles . | . . . . Follow-up Attacks . | . . . . Damage Inflicted 2060 | 40 1268 462 290 Guns 667 | 40 216 359 52 Cannons 171 | . 171 . . Explosions 1209 | . 877 94 238 Melee . | . . . . Ramming 11 | . 2 9 . Kinetic 363 | . 285 26 52 Thermal 368 | . 2 366 . Explosive 1115 | . 877 . 238 Electromagnetic 203 | 40 102 61 . Impact . | . . . . Slashing . | . . . . Piercing . | . . . . Highest Corruption 9 | . 1 . 9 Average Corruption 1 | . 1 . 9 Corruption Purged . | . . . . Corruption Blocked . | . . . . Effects 7 | . 7 . . Message Errors 2 | . 2 . . Matter Fused 2 | . 2 . . Heat Flow Errors 2 | . 2 . . Data Loss (minor) 1 | . 1 . . Overload Shots . | . . . . Overflow Damage . | . . . . Projectiles . | . . . . Explosions . | . . . . Melee . | . . . . Knockbacks . | . . . . Impact . | . . . . Kinetic . | . . . . Secondary . | . . . . Self-Inflicted Damage 287 | . 61 71 155 Shots 13 | . 5 2 6 Rammed 1 | . 1 . . Targets Rammed 2 | . 1 1 . Kicked 1 | . . 1 . Crushed . | . . . . Highest Temperature 217 | 32 217 64 32 Average Temperature 51 | 19 74 26 11 Received Heat Transfer 711 | 24 324 246 117 Siege Activations . | . . . . Robots Corrupted . | . . . . Combat Hostiles . | . . . . Parts Fried . | . . . . Impact Corruptions . | . . . . Robots Melted . | . . . . Combat Hostiles . | . . . . Parts Melted 1 | . . 1 . Heat Transferred 1238 | . 25 1213 . Parts Sabotaged . | . . . . Parts Stolen . | . . . . Parts Stripped . | . . . . Power Chain Reactions 2 | . . 2 . Alert | -11 -10 -9 -9 ------- Run | Yrd Mat Mat Sto Peak Influence 397 | 20 397 333 194 Initial 167 | . 13 167 57 Average 139 | 3 133 215 110 Maximum Alert Level 1 | . 1 1 . Low Security (%) 63 | 100 62 47 100 Level 1 36 | . 37 52 . Level 2 . | . . . . Level 3 . | . . . . Level 4 . | . . . . Level 5 . | . . . . High Security . | . . . . Max Security . | . . . . Squads Dispatched 7 | . 3 3 1 Investigation 3 | . 3 . . Extermination . | . . . . Reinforcement 3 | . . 3 . Assault . | . . . . Garrison 1 | . . . 1 Intercept . | . . . . Searches Triggered . | . . . . Construction Impeded . | . . . . Haulers Reinforced . | . . . . Active Scanning Responses . | . . . . Cargo Convoy Interrupts . | . . . . Stealth | -11 -10 -9 -9 --------- Run | Yrd Mat Mat Sto Distress Signals 1 | . . . 1 Communications Jammed . | . . . . Distress Signals . | . . . . Times Spotted 52 | 1 29 17 5 Peak Tracking Total 8 | 1 7 8 4 Tactical Retreats 2 | . 2 . . Traps | -11 -10 -9 -9 ------- Run | Yrd Mat Mat Sto Traps Triggered 4 | . 4 . . Indirectly . | . . . . Trap Hack Attempts . | . . . . Triggered . | . . . . Disarmed . | . . . . Reprogrammed . | . . . . Reused . | . . . . Traps Extracted . | . . . . Installed . | . . . . Triggered . | . . . . Machines | -11 -10 -9 -9 ---------- Run | Yrd Mat Mat Sto Machines Disabled 4 | . 2 1 1 Max in Single Turn 1 | . 1 1 1 Machines Repaired . | . . . . Machines Dismantled . | . . . . Machines Sabotaged . | . . . . Overloaded Fab Kills . | . . . . Hacking | -11 -10 -9 -9 --------- Run | Yrd Mat Mat Sto Machines Accessed 8 | . 5 2 1 Terminals 6 | . 4 1 1 Fabricators . | . . . . Repair Stations 1 | . . 1 . Recycling Units 1 | . 1 . . Scanalyzers . | . . . . Garrison Access . | . . . . Total Hacks 26 | . 16 9 1 Successful 17 | . 12 4 1 Failed 9 | . 4 5 . Catastrophic 2 | . 1 1 . Database Lockouts . | . . . . Manual 5 | . 2 2 1 Terminals 14 | . 11 2 1 Fabricators . | . . . . Repair Stations 7 | . . 7 . Recycling Units 5 | . 5 . . Scanalyzers . | . . . . Garrison Access . | . . . . Terminal Hacks 9 | . 8 . 1 Record 2 | . 2 . . Open Door 1 | . . . 1 Alert Level 3 | . 3 . . Locate Traps 1 | . 1 . . Recall Reinforcements 1 | . 1 . . Zone Layout 1 | . 1 . . Fabricator Hacks . | . . . . Repair Station Hacks 4 | . . 4 . Scan Component 2 | . . 2 . Repair 1 | . . 1 . Refit 1 | . . 1 . Recycling Unit Hacks 4 | . 4 . . Recycle Component 2 | . 2 . . Process 1 | . 1 . . Retrieve Matter 1 | . 1 . . Scanalyzer . | . . . . Garrison Access Hacks . | . . . . Unauthorized Hacks . | . . . . Terminals . | . . . . Fabricators . | . . . . Repair Stations . | . . . . Recycling Units . | . . . . Scanalyzers . | . . . . Garrison Access . | . . . . Data Cores Recovered . | . . . . Used . | . . . . Hacking Detections 4 | . 2 2 . Full Trace Events . | . . . . Feedback Events . | . . . . Feedback Blocked . | . . . . Robot Schematics Acquired . | . . . . Robots Built . | . . . . Authchips . | . . . . Time . | . . . . Total Robot Build Rating . | . . . . Part Schematics Acquired . | . . . . Parts Built . | . . . . Authchips . | . . . . Time . | . . . . Total Part Build Rating . | . . . . Parts Repaired 1 | . . 1 . Time 26 | . . 26 . Parts Recycled 2 | . 2 . . Recycled Matter 88 | . 88 . . Retrieved Matter 230 | . 230 . . Retrieved Components . | . . . . Parts Scanalyzed . | . . . . Part Schematics Acquired . | . . . . Parts Damaged . | . . . . Bothacking | -11 -10 -9 -9 ------------ Run | Yrd Mat Mat Sto Used RIF Installer . | . . . . Robots Hacked . | . . . . Non-combat . | . . . . Combat . | . . . . Robot Hacks Applied . | . . . . Relay Couplers Released . | . . . . Fabnet Peak Effective % . | . . . . Robots Rewired . | . . . . Allies Hacked . | . . . . Hacks Repelled . | . . . . Allies | -11 -10 -9 -9 -------- Run | Yrd Mat Mat Sto Total Allies . | . . . . Largest Group . | . . . . Highest-Rated Group . | . . . . Highest-Rated Ally . | . . . . Total Orders . | . . . . Ally Attacks . | . . . . Total Damage . | . . . . Kills . | . . . . Allies Corrupted . | . . . . Allies Melted . | . . . . Intel | -11 -10 -9 -9 ------- Run | Yrd Mat Mat Sto Robot Analysis Total . | . . . . Derelict Logs Recovered . | . . . . Drone Launches . | . . . . Drone Recoveries . | . . . . Exploration | -11 -10 -9 -9 ------------- Run | Yrd Mat Mat Sto Turns Passed 2214 | 155 1523 444 92 Spaces Moved 1603 | 133 931 421 118 Core 63 | 51 5 7 . Treads 324 | . 324 . . Legs 869 | 82 592 182 13 Wheels . | . . . . Hover 2 | . . 2 . Flight 345 | . 10 230 105 Fastest Speed 34 | 50 117 34 34 Average Speed 111 | 93 140 72 44 Slowest Speed 200 | 120 200 120 120 Overloaded Moves . | . . . . Propulsion Burnouts . | . . . . Robots Hopped 6 | . . 6 . Cave-ins Triggered 2 | . . . 2 Exploration Rate (%) 25 | 6 55 28 14 Regions Visited 3 Branch Regions 1 Pre-discovered Areas . | . . . . Known Exits Taken . | . . . . Unknown Exits Taken 3 | 1 1 1 . Scrap Searched . | . . . . Spaces Dug 6 | . 6 . . Terrain Destroyed 164 | . 90 . 74 Melee . | . . . . Projectile . | . . . . AOE 164 | . 90 . 74 Terrain Rammed . | . . . . Walls Destroyed . | . . . . Machines Disabled . | . . . . Actions | -11 -10 -9 -9 --------- Run | Yrd Mat Mat Sto Total 1860 | 157 1066 499 138 Wait 36 | . 22 14 . Move 1586 | 132 930 408 116 Hop 6 | . . 6 . Pick Up 40 | 12 18 8 2 Fast Attach 17 | . 8 7 2 Attach 15 | 6 5 3 1 Detach 5 | . 2 1 2 Swap 30 | 1 11 16 2 Drop 35 | 1 22 10 2 Fire 87 | 5 47 25 10 Melee . | . . . . Ram . | . . . . Kick 1 | . . 1 . Crush 1 | . 1 . . Escape Stasis 1 | . . . 1 Rewire . | . . . . Trap . | . . . . Miscellaneous . | . . . . Route ------- -11/Scrapyard -10/Materials (discovered 2 exits: *Mat / [*Min]) -9/Materials -9/Storage History --------- Turn | Location | Event 2 | -11/Scrapyard | Met Revision 17 116 | -11/Scrapyard | Discovered new exit (range 8) 156 | -11/Scrapyard | Entered Materials 308 | -10/Materials | Build established: Mutant 940 | -10/Materials | Discovered new exit (range 11) 1177 | -10/Materials | Core integrity fell below 50% 1201 | -10/Materials | Lost 4 parts (1p2n1u) 1366 | -10/Materials | Discovered new exit (range 16) 1679 | -10/Materials | Entered another Materials area 1679 | -9/Materials | Evolved 2 slots: Power x1, Propulsion x1 1980 | -9/Materials | Lost 12 parts (2p4n3u3w) 2062 | -9/Materials | Repaired Ion Engine? 2119 | -9/Materials | Discovered new exit (range 9) 2123 | -9/Materials | Entered Storage 2135 | -9/Storage | Core integrity fell below 50% 2185 | -9/Storage | Garrison activated, responded to threat 2214 | -9/Storage | Crushed by falling debris 2215 | -9/Storage | Core integrity fell below 20% 2215 | -9/Storage | Crushed by falling debris 2215 | -9/Storage | Smashed by cave-in Last Messages --------------- 02213_ The unstable cave ceiling collapses. 02213_ U-05 Engineer lays Concrete. 02214_ The unstable cave ceiling collapses. 02214_ Crushed by falling debris. [Achievement: Unlikely Earthworm] 02214_ Rocket Launcher destroyed. 02214_ System corrupted by crushing effect (+2). 02214_ Lgt. Ion Engine destroyed. 02214_ System corrupted by crushing effect (+4). 02214_ Imp. Aluminum Leg destroyed. 02214_ System corrupted by crushing effect (+2). 02214_ Flight Unit destroyed. 02214_ System corrupted by crushing effect (+1). 02214_ U-05 Engineer builds a Wall. 02215_ U-05 Engineer lays Concrete. 02215_ The unstable cave ceiling collapses. 02215_ Crushed by falling debris. 02215_ Imp. Aluminum Leg destroyed. 02215_ System corrupted by crushing effect (+1). [Achievement: First Step to Greatness] Map ----- +----------------------------------------------------+ | | | | | | | | | | | | | | | | | | | | | | | | | | | | | | | ????????##########???##### ###???????????????????? | | ????????# ###? ????????????????????? | | ????????# """## # ????????????????????? | | ????????# """## # # ###################? | | ????????# """# #? | | ????????# ! #? | | ????????# """# % #? | | ????????# """# # ########### #############? | | ????????# """# # #?????# #????????????? | | ????????# # # ##?????# #????????????? | | ????????########## @ #??????# #????????????? | | ?????????????????# # ##?????# #######??????? | | ?????????????????+ # #?????# #??????? | | ???????????????? # YY ##?????#+##### #??????? | | ???????????????? # # # #????? ???# #??????? | | ???????????????#?# ## ####????? ??? ??????? | | ?????????????????# ## #??????? ?? ?????? | | ?????????????????# ## #??????? ?? # ????? | | ?????????????????# #####??????# ?# #? ????? | | ?????????????????# #??????????# ?# #?? ???? | | ?????????????????# #??????????######### #??? ??? | | ?????????????????# #??????????????????? ???? ?? | | ?????????????????/ ???????????????????? ????? ?? | | ?????????????????# ???????????????????? ?????? ? | | ?????????????????# ???????????????????? ??????? | | ?????????????????# ???????????????????? ???????? | | ?????????????????# ???????????????????? ???????? | | ?????????????????? ???????????????????? ???????? | | ?????????????????????????????????????????????????? | | ?????????????????????????????????????????????????? | | ?????????????????????????????????????????????????? | | ?????????????????????????????????????????????????? | | ?????????????????????????????????????????????????? | | ?????????????????????????????????????????????????? | | ?????????????????????????????????????????????????? | +----------------------------------------------------+ Best States ------------- Heat Dissipation 38 Energy Generation 15 Energy Capacity 400 Matter Stores 300 Matter Capacity 350 Sight Range 16 Robot Scan Range 14 Terrain Scan Density 10 Armor Coverage 160 Evasion (%) 63 Recoil Reduction 2 Item Schematics ----------------- None Robot Schematics ------------------ None Fabricated ------------ Nothing Alien Tech Used ----------------- None Achievements -------------- Crack Shot First Step to Greatness Part-time Mechanic Storm Trooper Troublemaker Uninvited Guest Unlikely Earthworm Challenges ------------ None Game ------ Seed ShrapnelBombLaser Manual? 0 Play Time 01:19:15 Cumulative 1.3 hours Start 2024.09.29 @ 19:26:33 End 2024.09.29 @ 20:50:14 Sessions 1 Manual Loads 0 Difficulty Rogue Special Mode None Game No. 1 Rogue 1 Adventurer 0 Explorer 0 Win Type - Total 0 Types 0/0/0/0/0/0/0/0/0 Lore% 0 Gallery% 2 Achievement% 2 Wizard Run 0 Options --------- Layout 1 ASCII 0 Keyboard 0 Movement Vi Keybinds 0 Fullscreen 1 Font 48/Terminus++ Map View 50x35 Zoom Use 0% Tactical HUD 1 Map Filters NONE Filters NONE Steam 0 RUN: 694e665c-36b0-4c6f-81d2-3f782fdaac40